bitfinex/quotes_BTCUSD_20240906
["timestamp","ask_amount","ask_price","bid_price","bid_amount"]
[1725601032854,0.017501,56556.0,56555.0,1.52505996]
[1725601033513,0.001,56556.0,56555.0,1.52505996]
[1725601034183,0.001,56556.0,56555.0,1.87869796]
[1725601034434,0.017501,56556.0,56555.0,1.87869796]
[1725601034670,0.095,56573.0,56566.0,0.176784]
[1725601034671,0.176776,56569.0,56566.0,0.176784]
[1725601034860,0.176775,56569.0,56566.0,0.176783]
[1725601035094,0.176775,56569.0,56567.0,0.01617352]
[1725601035525,0.353558,56568.0,56562.0,0.353591]
[1725601035743,0.176785,56566.0,56563.0,0.176793]
[1725601035970,0.2166,56569.0,56566.0,0.003]
[1725601036182,0.20450357,56567.0,56566.0,0.003]
[1725601037034,0.55806657,56567.0,56566.0,0.0191753]
[1725601037251,0.55806657,56567.0,56566.0,0.003]
[1725601037462,0.176786,56566.0,56562.0,0.176796]
[1725601037674,0.176786,56566.0,56562.0,0.181796]
[1725601037857,0.176786,56566.0,56563.0,0.01618066]
[1725601038272,0.20450457,56567.0,56566.0,0.005]
[1725601038526,0.20450457,56567.0,56566.0,0.006]
[1725601038738,0.176783,56567.0,56566.0,0.0221753]
[1725601038939,0.20450565,56567.0,56566.0,0.006]
[1725601039148,0.176783,56567.0,56566.0,0.0161753]
[1725601039366,0.176783,56567.0,56563.0,0.183791]
[1725601039574,0.176783,56567.0,56566.0,0.0161753]
[1725601040059,0.176783,56567.0,56564.0,0.17679]
[1725601040268,0.176783,56567.0,56566.0,0.0161753]
[1725601040477,0.01649716,56566.0,56565.0,0.01617709]
[1725601040699,0.176778,56568.0,56566.0,0.0161753]
[1725601040906,0.0164969,56567.0,56566.0,0.005]
[1725601041117,0.0164969,56567.0,56566.0,0.181784]
[1725601041330,0.0164969,56567.0,56566.0,0.535353]
[1725601041539,0.0164969,56567.0,56566.0,0.536353]
[1725601041957,0.0164969,56567.0,56566.0,0.5565283]
[1725601042163,0.04421882,56567.0,56566.0,0.5565283]
[1725601043149,0.0164969,56567.0,56566.0,0.5525283]
[1725601043559,0.0164969,56567.0,56566.0,0.5575283]
[1725601043788,0.271069,56571.0,56567.0,0.176779]
[1725601043993,0.01649716,56570.0,56567.0,0.176779]
[1725601044219,0.01649716,56569.0,56568.0,0.01617173]
[1725601044431,0.01649716,56569.0,56567.0,0.176779]
[1725601044647,0.01649716,56568.0,56567.0,0.176779]
[1725601045074,0.01649716,56568.0,56567.0,0.177779]
[1725601045488,0.04421901,56568.0,56567.0,0.177779]
[1725601045738,0.04421901,56568.0,56567.0,0.532342]
[1725601046217,0.04421901,56568.0,56567.0,0.884905]
[1725601046404,0.04421901,56568.0,56567.0,1.237468]
[1725601046837,0.04421901,56568.0,56567.0,1.335368]
[1725601047037,0.04421901,56568.0,56567.0,1.450468]
[1725601047608,0.04421901,56568.0,56567.0,1.454468]
[1725601047837,0.04421901,56568.0,56567.0,1.455468]
[1725601048255,0.04421901,56568.0,56567.0,1.460468]
[1725601048462,0.04421901,56568.0,56567.0,1.470468]
[1725601049567,0.01649716,56568.0,56567.0,1.493468]
[1725601051965,0.05264776,56584.0,56567.0,1.493468]
[1725601051966,0.1158,56581.0,56571.0,0.353538]
[1725601052183,0.1158,56581.0,56572.0,0.353529]
[1725601052184,0.176751,56577.0,56572.0,0.353529]
[1725601052413,0.01649541,56576.0,56574.0,0.176758]
[1725601052645,0.01649541,56575.0,56574.0,0.176758]
[1725601053492,0.01649523,56575.0,56574.0,0.176758]
[1725601053981,0.01649484,56575.0,56574.0,0.178758]
[1725601055355,0.01649484,56575.0,56574.0,0.180758]
[1725601056043,0.01649484,56575.0,56574.0,0.534277]
[1725601056729,0.02771882,56576.0,56574.0,0.357519]
[1725601056966,0.02771882,56576.0,56575.0,0.176756]
[1725601057193,0.04421377,56576.0,56575.0,0.176756]
[1725601057407,0.04421377,56576.0,56575.0,0.19291523]
[1725601058763,0.04421377,56576.0,56575.0,0.19391523]
[1725601059517,0.01649495,56576.0,56575.0,0.19391523]
[1725601059735,0.01649495,56576.0,56575.0,0.64892823]
[1725601059957,0.000816,56578.0,56577.0,0.53025]
[1725601060170,0.000816,56578.0,56577.0,0.88375]
[1725601060388,0.01731561,56578.0,56577.0,0.89990566]
[1725601061303,0.01731561,56578.0,56577.0,1.25740566]
[1725601061597,0.01731561,56578.0,56577.0,1.98330566]
[1725601061763,0.000816,56578.0,56577.0,1.98330566]
[1725601061985,0.000816,56578.0,56577.0,1.95030566]
[1725601062239,0.0173182,56578.0,56577.0,0.77980566]
[1725601062456,0.0173182,56578.0,56577.0,0.02015566]
[1725601062457,0.1940652,56578.0,56577.0,0.02015566]
[1725601062680,0.0173182,56578.0,56577.0,0.02015566]
[1725601062915,0.0173182,56578.0,56577.0,0.01615566]
[1725601063137,0.000816,56578.0,56577.0,0.20490566]
[1725601063358,0.000816,56578.0,56577.0,0.19290566]
[1725601063566,0.01731543,56578.0,56577.0,0.19290566]
[1725601063772,0.01731543,56578.0,56577.0,0.21890566]
[1725601063997,0.01731543,56578.0,56577.0,0.20690566]
[1725601064231,0.01731543,56578.0,56577.0,0.19290566]
[1725601064437,0.01731543,56578.0,56577.0,0.55840566]
[1725601064655,0.01731543,56578.0,56577.0,0.54640566]
[1725601065115,0.01731543,56578.0,56577.0,0.55840566]
[1725601065596,0.01731543,56578.0,56577.0,0.54640566]
[1725601066560,0.01731558,56578.0,56577.0,0.55840566]
[1725601067066,0.01731558,56578.0,56577.0,0.57240566]
[1725601067729,0.01731558,56578.0,56577.0,0.91390566]
[1725601067961,0.01731708,56578.0,56577.0,0.92790566]
[1725601068206,0.01727708,56578.0,56577.0,0.92790566]
[1725601068437,0.36602887,56586.0,56579.0,0.353483]
[1725601068908,0.176729,56584.0,56581.0,0.176736]
[1725601069154,0.176733,56583.0,56580.0,0.0161503]
[1725601069451,0.176732,56583.0,56580.0,0.0161503]
[1725601069696,0.36602887,56586.0,56580.0,0.1928903]
[1725601069937,0.176725,56585.0,56581.0,0.176736]
[1725601070349,0.176729,56584.0,56582.0,0.01614673]
[1725601070831,0.176729,56584.0,56580.0,0.17674]
[1725601071060,0.176729,56584.0,56583.0,0.01614494]
[1725601071270,0.0935,56586.0,56583.0,0.17673]
[1725601071480,0.02771522,56584.0,56583.0,0.01614494]
[1725601071691,0.02771522,56584.0,56583.0,0.19287594]
[1725601071938,0.02771522,56584.0,56583.0,0.01614494]
[1725601072160,0.02771522,56584.0,56583.0,0.19287594]
[1725601072579,0.02771522,56584.0,56583.0,0.19787594]
[1725601072790,0.02771522,56584.0,56583.0,0.19287594]
[1725601073720,0.02771522,56584.0,56583.0,0.20087594]
[1725601074195,0.02771522,56584.0,56583.0,0.20787594]
[1725601074881,0.02771522,56584.0,56583.0,0.03114494]
[1725601075100,0.02771522,56584.0,56583.0,0.20787594]
[1725601075319,0.20444322,56584.0,56583.0,0.03114494]
[1725601075543,1.00475522,56584.0,56583.0,0.03114494]
[1725601075973,1.00475522,56584.0,56583.0,0.015]
[1725601076389,0.65129922,56584.0,56583.0,0.015]
[1725601077612,1.12395522,56584.0,56583.0,0.015]
[1725601077835,1.12395522,56584.0,56583.0,0.03114494]
[1725601078056,1.12395522,56584.0,56583.0,0.015]
[1725601080388,1.14047247,56584.0,56583.0,0.015]
[1725601081048,1.11275725,56584.0,56583.0,0.015]
[1725601081982,1.81966925,56584.0,56583.0,0.015]
[1725601082233,2.02711825,56584.0,56583.0,0.015]
[1725601082466,2.03830288,56584.0,56583.0,0.015]
[1725601082707,2.08253634,56584.0,56583.0,0.015]
[1725601082954,2.08253518,56584.0,56583.0,0.007]
[1725601083405,2.0568333,56584.0,56583.0,0.007]
[1725601083879,1.237229,56578.0,56577.0,0.001632]
[1725601084347,1.25374305,56578.0,56577.0,0.001632]
[1725601084581,1.28146248,56578.0,56577.0,0.001632]
[1725601084982,1.37486248,56578.0,56577.0,0.001632]
[1725601085208,1.49406248,56578.0,56577.0,0.001632]
[1725601085445,1.49406248,56578.0,56577.0,0.003632]
[1725601085683,1.49406359,56578.0,56577.0,0.001632]
[1725601086610,1.49406359,56578.0,56577.0,0.003632]
[1725601087075,1.28146359,56578.0,56577.0,0.001632]
[1725601087329,1.28146359,56578.0,56577.0,0.003632]
[1725601087767,1.28146359,56578.0,56577.0,0.004632]
[1725601088883,1.26494843,56578.0,56577.0,0.002632]
[1725601089099,1.2814655,56578.0,56577.0,0.003632]
[1725601089774,1.28146366,56578.0,56577.0,0.003632]
[1725601090533,1.90955709,56578.0,56577.0,0.003632]
[1725601091018,2.36305109,56578.0,56577.0,0.003632]
[1725601091323,2.44258141,56578.0,56577.0,0.003632]
[1725601091517,2.46758141,56578.0,56577.0,0.003632]
[1725601091750,2.41621186,56578.0,56577.0,0.003632]
[1725601091991,2.41621186,56578.0,56577.0,0.002632]
[1725601092223,2.41821186,56578.0,56577.0,0.001632]
[1725601092447,2.40469663,56578.0,56577.0,0.001632]
[1725601092700,2.44177345,56578.0,56577.0,0.001632]
[1725601092933,2.44177265,56578.0,56577.0,0.001632]
[1725601093154,2.44010261,56578.0,56577.0,0.001632]
[1725601093600,2.44310261,56578.0,56577.0,0.002632]
[1725601093855,2.44232028,56578.0,56577.0,0.002632]
[1725601094297,2.38862085,56578.0,56577.0,0.002632]
[1725601094522,2.52821066,56578.0,56577.0,0.003632]
[1725601094948,2.51721066,56578.0,56577.0,0.001632]
[1725601095186,2.53121066,56578.0,56577.0,0.002632]
[1725601095406,2.40762085,56578.0,56577.0,0.003632]
[1725601095624,2.39362085,56578.0,56577.0,0.002632]
[1725601095847,2.37711025,56578.0,56577.0,0.002632]
[1725601096070,2.53919518,56578.0,56577.0,0.003632]
[1725601096294,2.40762453,56578.0,56577.0,0.003632]
[1725601096510,2.46001197,56578.0,56577.0,0.003632]
[1725601097420,2.56520994,56578.0,56577.0,0.003632]
[1725601097921,2.56520755,56578.0,56577.0,0.003632]
[1725601098367,2.44349769,56578.0,56577.0,0.003632]
[1725601098790,2.52098487,56578.0,56577.0,0.003632]
[1725601098984,2.44349859,56578.0,56577.0,0.003632]
[1725601099286,2.49465708,56578.0,56577.0,0.003632]
[1725601099526,2.44349901,56578.0,56577.0,0.003632]
[1725601099744,2.46017011,56578.0,56577.0,0.003632]
[1725601100181,2.44365574,56578.0,56577.0,0.003632]
[1725601100394,2.51132328,56578.0,56577.0,0.003632]
[1725601100609,2.43246023,56578.0,56577.0,0.003632]
[1725601100826,2.44365575,56578.0,56577.0,0.003632]
[1725601101276,2.49480635,56578.0,56577.0,0.003632]
[1725601101504,2.41594602,56578.0,56577.0,0.003632]
[1725601101743,2.51131521,56578.0,56577.0,0.003632]
[1725601101980,2.51131845,56578.0,56577.0,0.003632]
[1725601102209,2.56530998,56578.0,56577.0,0.003632]
[1725601102433,2.46017034,56578.0,56577.0,0.003632]
[1725601102885,2.51131233,56578.0,56577.0,0.003632]
[1725601103140,2.43246004,56578.0,56577.0,0.003632]
[1725601104017,2.51130026,56578.0,56577.0,0.003632]
[1725601104273,2.53900949,56578.0,56577.0,0.003632]
[1725601105701,2.36286532,56578.0,56577.0,0.003632]
[1725601105754,2.25631587,56578.0,56577.0,0.003632]
[1725601106795,2.25831587,56578.0,56577.0,0.003632]
[1725601107136,2.23631587,56578.0,56577.0,0.001632]
[1725601107555,2.26331587,56578.0,56577.0,0.003632]
[1725601108265,2.24931587,56578.0,56577.0,0.002632]
[1725601108486,2.23631587,56578.0,56577.0,0.001632]
[1725601108714,2.26131587,56578.0,56577.0,0.003632]
[1725601108947,2.24831587,56578.0,56577.0,0.002632]
[1725601109338,2.23180185,56578.0,56577.0,0.002632]
[1725601109491,2.2483198,56578.0,56577.0,0.002632]
[1725601110102,2.2463198,56578.0,56577.0,0.002632]
[1725601110248,2.2443198,56578.0,56577.0,0.002632]
[1725601110655,2.2523198,56578.0,56577.0,0.003632]
[1725601111302,2.2543198,56578.0,56577.0,0.003632]
[1725601111527,2.3765907,56578.0,56577.0,0.003632]
[1725601112903,2.36007275,56578.0,56577.0,0.003632]
[1725601113112,2.37659094,56578.0,56577.0,0.003632]
[1725601115133,2.28002739,56578.0,56577.0,0.003632]
[1725601115342,2.17772739,56578.0,56577.0,0.003632]
[1725601116442,2.15472716,56578.0,56577.0,0.003632]
[1725601117653,2.25129071,56578.0,56577.0,0.003632]
[1725601118340,2.33012377,56578.0,56577.0,0.003632]
[1725601118612,2.25129071,56578.0,56577.0,0.003632]
[1725601118855,2.37740146,56578.0,56577.0,0.003632]
[1725601119084,2.35118338,56578.0,56577.0,0.003632]
[1725601119301,2.27429071,56578.0,56577.0,0.003632]
[1725601119759,2.35318505,56578.0,56577.0,0.003632]
[1725601119989,2.27229071,56578.0,56577.0,0.003632]
[1725601120473,2.35187881,56578.0,56577.0,0.003632]
[1725601120687,2.48326725,56578.0,56577.0,0.003632]
[1725601120975,2.70556725,56578.0,56577.0,0.003632]
[1725601121204,2.70569129,56578.0,56577.0,0.003632]
[1725601121431,2.57417881,56578.0,56577.0,0.003632]
[1725601121663,2.92767281,56578.0,56577.0,0.003632]
[1725601123472,2.92766895,56578.0,56577.0,0.003632]
[1725601123919,3.05924748,56578.0,56577.0,0.003632]
[1725601124136,2.92766895,56578.0,56577.0,0.003632]
[1725601124350,3.0572539,56578.0,56577.0,0.003632]
[1725601124804,3.05728202,56578.0,56577.0,0.003632]
[1725601125020,2.92766895,56578.0,56577.0,0.003632]
[1725601127295,2.80086895,56578.0,56577.0,0.003632]
[1725601129573,2.75700483,56578.0,56577.0,0.003632]
[1725601129788,2.75500483,56578.0,56577.0,0.003632]
[1725601130044,2.75700483,56578.0,56577.0,0.003632]
[1725601130496,2.7570015,56578.0,56577.0,0.003632]
[1725601130940,2.6794134,56578.0,56577.0,0.003632]
[1725601131409,2.75699866,56578.0,56577.0,0.003632]
[1725601132640,2.75699839,56578.0,56577.0,0.003632]
[1725601133502,2.17771997,56578.0,56577.0,0.003632]
[1725601135111,2.10177467,56578.0,56577.0,0.003632]
[1725601136878,2.10177467,56578.0,56577.0,0.103932]
[1725601136879,1.74828067,56578.0,56577.0,0.103932]
[1725601137089,1.72057537,56578.0,56577.0,0.103932]
[1725601137327,1.04919886,56578.0,56577.0,0.228532]
[1725601137561,0.97002195,56578.0,56577.0,0.228532]
[1725601138244,0.96002195,56578.0,56577.0,0.227532]
[1725601138664,0.96002195,56578.0,56577.0,0.228532]
[1725601138881,0.96702195,56578.0,56577.0,0.227532]
[1725601139098,0.97302195,56578.0,56577.0,0.228532]
[1725601139314,0.96602195,56578.0,56577.0,0.227532]
[1725601139483,0.96602195,56578.0,56577.0,0.24741407]
[1725601139701,0.97102195,56578.0,56577.0,0.227532]
[1725601139904,0.06323225,56578.0,56577.0,0.227532]
[1725601140272,0.06323225,56578.0,56577.0,0.42416407]
[1725601140476,0.06323225,56578.0,56577.0,0.77766407]
[1725601140687,0.06323225,56578.0,56577.0,1.13116407]
[1725601140900,0.02151282,56578.0,56577.0,1.13016407]
[1725601141116,0.02151282,56578.0,56577.0,1.48366407]
[1725601141344,0.000816,56584.0,56583.0,0.883657]
[1725601141585,0.000816,56584.0,56583.0,1.108557]
[1725601141802,0.000816,56584.0,56583.0,0.42049968]
[1725601142257,0.000816,56584.0,56583.0,1.12742568]
[1725601142466,0.000816,56584.0,56583.0,1.47988868]
[1725601142916,0.001816,56584.0,56583.0,1.49188868]
[1725601144286,0.002816,56584.0,56583.0,1.50288868]
[1725601144405,0.03052648,56584.0,56583.0,1.50288868]
[1725601145074,0.000816,56586.0,56585.0,1.237075]
[1725601145303,0.353337,56604.0,56597.0,0.176687]
[1725601145548,0.52650515,56611.0,56597.0,0.754962]
[1725601145791,0.17667,56603.0,56597.0,0.77479944]
[1725601146281,0.02852728,56598.0,56597.0,0.77379944]
[1725601146529,0.02852728,56598.0,56597.0,0.24473744]
[1725601146760,0.55858028,56598.0,56597.0,0.24473744]
[1725601147212,0.55858028,56598.0,56597.0,0.24373744]
[1725601147873,0.55858028,56598.0,56597.0,0.2269]
[1725601148136,0.55858028,56598.0,56597.0,0.25073744]
[1725601149534,0.884242,56598.0,56597.0,0.25073744]
[1725601149785,0.884242,56598.0,56597.0,0.2309]
[1725601152414,1.237611,56598.0,56597.0,0.007]
[1725601152866,1.2653195,56598.0,56597.0,0.007]
[1725601153106,1.3653195,56598.0,56597.0,0.007]
[1725601153343,1.38183851,56598.0,56597.0,0.007]
[1725601157299,1.3653195,56598.0,56597.0,0.007]
[1725601157548,1.38183786,56598.0,56597.0,0.007]
[1725601158490,1.40181897,56598.0,56597.0,0.007]
[1725601159145,1.88183786,56598.0,56597.0,0.007]
[1725601159370,1.88183955,56598.0,56597.0,0.007]
[1725601159823,1.8653195,56598.0,56597.0,0.007]
[1725601160071,1.88183933,56598.0,56597.0,0.007]
[1725601160533,1.62637454,56598.0,56597.0,0.007]
[1725601160754,2.24962754,56598.0,56597.0,0.007]
[1725601161920,2.24962754,56598.0,56597.0,0.1299]
[1725601161921,1.80305854,56598.0,56597.0,0.1299]
[1725601162388,1.80305847,56598.0,56597.0,0.1299]
[1725601163064,1.30305847,56598.0,56597.0,0.1299]
[1725601163494,1.27534997,56598.0,56597.0,0.1299]
[1725601164446,0.92198097,56598.0,56597.0,0.1299]
[1725601166342,0.92198151,56598.0,56597.0,0.1299]
[1725601166792,0.92198151,56598.0,56597.0,0.131532]
[1725601167009,0.92279751,56598.0,56597.0,0.131532]
[1725601167684,0.92279751,56598.0,56597.0,0.15136944]
[1725601167911,0.92279751,56598.0,56597.0,0.131532]
[1725601168567,1.0007583,56598.0,56597.0,0.232932]
[1725601168995,1.0007583,56598.0,56597.0,0.25276944]
[1725601169439,0.6473893,56598.0,56597.0,0.25276944]
[1725601169884,0.6473871,56598.0,56597.0,0.232932]
[1725601170106,0.0173341,56598.0,56597.0,0.409619]
[1725601170324,0.0173341,56598.0,56597.0,0.78283144]
[1725601170770,0.0173341,56598.0,56597.0,1.13620644]
[1725601171444,0.0173341,56598.0,56597.0,0.78283144]
[1725601173903,0.01712144,56598.0,56597.0,1.13620644]
[1725601174341,0.01712144,56598.0,56597.0,1.48958144]
[1725601174780,0.01712144,56598.0,56597.0,1.48258144]
[1725601174993,0.01812144,56598.0,56597.0,1.49558144]
[1725601175254,0.01912144,56598.0,56597.0,1.50858144]
[1725601176574,0.01812144,56598.0,56597.0,1.49558144]
[1725601177045,0.01812144,56598.0,56597.0,1.49658144]
[1725601177495,0.01812144,56598.0,56597.0,1.51058144]
[1725601178275,0.0458271,56598.0,56597.0,1.51058144]
[1725601179313,0.01812144,56598.0,56597.0,1.51058144]
[1725601179734,0.01812144,56598.0,56597.0,1.15720644]
[1725601180376,0.00160334,56598.0,56597.0,1.15720644]
[1725601180589,0.01812459,56598.0,56597.0,1.15720644]
[1725601181038,0.04583063,56598.0,56597.0,1.51058144]
[1725601181467,0.01812459,56598.0,56597.0,1.51058144]
[1725601182583,0.176651,56609.0,56606.0,0.176657]
[1725601182800,0.01652193,56608.0,56607.0,0.2192]
[1725601183059,0.01652193,56608.0,56607.0,0.23901514]
[1725601183273,0.0442261,56608.0,56607.0,0.23901514]
[1725601183492,0.22087547,56608.0,56607.0,0.14571514]
[1725601183920,0.22187547,56608.0,56607.0,0.15671514]
[1725601184360,0.04522247,56608.0,56607.0,0.15671514]
[1725601184772,0.04522247,56608.0,56607.0,0.16771514]
[1725601185018,0.22187547,56608.0,56607.0,0.16771514]
[1725601185431,0.04522247,56608.0,56607.0,0.16771514]
[1725601186940,0.20535717,56608.0,56607.0,0.16771514]
[1725601187168,0.57518004,56608.0,56607.0,0.04181514]
[1725601187376,1.14468604,56608.0,56607.0,0.04181514]
[1725601187578,1.49799204,56608.0,56607.0,0.022]
[1725601188031,1.28179066,56608.0,56607.0,0.022]
[1725601188225,0.92848466,56608.0,56607.0,0.022]
[1725601189272,0.92848466,56608.0,56607.0,0.011]
[1725601189467,0.92948466,56608.0,56607.0,0.017]
[1725601189895,0.92848466,56608.0,56607.0,0.006]
[1725601190105,0.92848466,56608.0,56607.0,0.011]
[1725601190222,0.92848466,56608.0,56607.0,0.012632]
[1725601190423,0.90078049,56608.0,56607.0,0.012632]
[1725601192762,0.92848525,56608.0,56607.0,0.012632]
[1725601192986,0.04522025,56608.0,56607.0,0.138532]
[1725601193201,0.04522025,56608.0,56607.0,0.15834714]
[1725601193202,0.22187325,56608.0,56607.0,0.15834714]
[1725601193423,0.57517925,56608.0,56607.0,0.03244714]
[1725601193632,0.92848525,56608.0,56607.0,0.03244714]
[1725601194318,0.92848525,56608.0,56607.0,0.012632]
[1725601194539,0.91196976,56608.0,56607.0,0.012632]
[1725601194761,0.92848612,56608.0,56607.0,0.012632]
[1725601194965,0.92848612,56608.0,56607.0,0.03244714]
[1725601197796,0.22187417,56608.0,56607.0,0.03244714]
[1725601198266,0.57518017,56608.0,56607.0,0.03244714]
[1725601200419,0.92848617,56608.0,56607.0,0.03244714]
[1725601200668,1.02188617,56608.0,56607.0,0.03244714]
[1725601200892,1.37719009,56608.0,56607.0,0.012632]
[1725601201127,2.08323633,56608.0,56607.0,0.012632]
[1725601201347,2.10338897,56608.0,56607.0,0.012632]
[1725601201568,2.34400252,56608.0,56607.0,0.012632]
[1725601201782,2.52065552,56608.0,56607.0,0.012632]
[1725601202200,2.46800597,56608.0,56607.0,0.006632]
[1725601202425,2.52065552,56608.0,56607.0,0.007632]
[1725601202641,2.55536259,56608.0,56607.0,0.007632]
[1725601203070,2.54836259,56608.0,56607.0,0.006632]
[1725601203500,2.53684826,56608.0,56607.0,0.006632]
[1725601203719,2.55336017,56608.0,56607.0,0.006632]
[1725601204168,2.55336017,56608.0,56607.0,0.001632]
[1725601204421,2.55936017,56608.0,56607.0,0.002632]
[1725601205324,2.55935996,56608.0,56607.0,0.002632]
[1725601206660,2.54284826,56608.0,56607.0,0.002632]
[1725601206920,2.55935431,56608.0,56607.0,0.002632]
[1725601207595,2.50670476,56608.0,56607.0,0.002632]
[1725601209854,2.50870476,56608.0,56607.0,0.002632]
[1725601210079,2.49219871,56608.0,56607.0,0.002632]
[1725601210296,2.50869799,56608.0,56607.0,0.002632]
[1725601210539,2.50869799,56608.0,56593.0,0.4672]
[1725601210540,1.462991,56598.0,56593.0,0.4672]
[1725601210777,1.83485928,56598.0,56597.0,0.02146944]
[1725601211017,1.93485928,56598.0,56597.0,0.02146944]
[1725601211232,2.08138178,56598.0,56597.0,0.001632]
[1725601211706,2.10772074,56598.0,56597.0,0.002632]
[1725601212185,2.02875073,56598.0,56597.0,0.001632]
[1725601212615,2.02875073,56598.0,56597.0,0.002632]
[1725601212843,2.38011973,56598.0,56597.0,0.002632]
[1725601213062,2.45700888,56598.0,56597.0,0.002632]
[1725601213294,2.02675073,56598.0,56597.0,0.002632]
[1725601213753,1.98047786,56598.0,56597.0,0.002632]
[1725601213976,2.00076623,56598.0,56597.0,0.002632]
[1725601214184,2.00074046,56598.0,56597.0,0.002632]
[1725601214645,1.97774046,56598.0,56597.0,0.002632]
[1725601214872,1.8988391,56598.0,56597.0,0.002632]
[1725601215307,1.42418173,56598.0,56597.0,0.002632]
[1725601215943,1.35328873,56598.0,56597.0,0.002632]
[1725601216651,1.12479855,56598.0,56597.0,0.002632]
[1725601217086,1.30148357,56598.0,56597.0,0.002632]
[1725601219823,1.32919587,56598.0,56597.0,0.002632]
[1725601221351,1.68256487,56598.0,56597.0,0.002632]
[1725601221603,2.3363251,56598.0,56597.0,0.002632]
[1725601221833,2.42519942,56598.0,56597.0,0.002632]
[1725601222045,2.42514055,56598.0,56597.0,0.002632]
[1725601222285,2.65401424,56598.0,56597.0,0.002632]
[1725601222492,2.65401424,56598.0,56597.0,0.001632]
[1725601222493,2.57519879,56598.0,56597.0,0.001632]
[1725601222707,2.58919879,56598.0,56597.0,0.002632]
[1725601222941,2.58919879,56598.0,56597.0,0.003632]
[1725601222942,2.60019879,56598.0,56597.0,0.003632]
[1725601223170,1.338229,56578.0,56572.0,0.1279]
[1725601223396,1.691723,56578.0,56567.0,0.65603715]
[1725601223638,1.816723,56578.0,56567.0,0.65603715]
[1725601223853,1.84444389,56578.0,56567.0,0.65603715]
[1725601224087,1.84244389,56578.0,56567.0,0.65603715]
[1725601224323,1.84244389,56578.0,56567.0,0.129532]
[1725601225221,1.84244389,56578.0,56577.0,0.002632]
[1725601225448,1.84244389,56578.0,56577.0,0.005632]
[1725601225891,1.8622998,56578.0,56577.0,0.005632]
[1725601226137,1.87879228,56578.0,56577.0,0.005632]
[1725601226358,1.8622998,56578.0,56577.0,0.005632]
[1725601227221,1.8787918,56578.0,56577.0,0.005632]
[1725601228324,1.91226214,56578.0,56577.0,0.005632]
[1725601228539,1.89577014,56578.0,56577.0,0.005632]
[1725601228770,1.91225895,56578.0,56577.0,0.005632]
[1725601229207,1.91225895,56578.0,56577.0,0.002632]
[1725601230694,1.91225895,56578.0,56577.0,0.001632]
[1725601231317,1.92125895,56578.0,56577.0,0.001632]
[1725601231766,1.93225895,56578.0,56577.0,0.001632]
[1725601232389,2.28575295,56578.0,56577.0,0.001632]
[1725601232849,2.27675295,56578.0,56577.0,0.001632]
[1725601233287,2.46602664,56578.0,56577.0,0.001632]
[1725601233743,2.81952064,56578.0,56577.0,0.001632]
[1725601233987,2.77714695,56578.0,56577.0,0.001632]
[1725601234207,2.87346172,56578.0,56577.0,0.001632]
[1725601234443,2.7355606,56578.0,56577.0,0.001632]
[1725601234658,2.7375606,56578.0,56577.0,0.001632]
[1725601234878,2.7365606,56578.0,56577.0,0.001632]
[1725601235087,2.7255606,56578.0,56577.0,0.001632]
[1725601235294,2.7395606,56578.0,56577.0,0.001632]
[1725601235506,2.7165606,56578.0,56577.0,0.001632]
[1725601235923,2.7385606,56578.0,56577.0,0.001632]
[1725601236140,2.7285606,56578.0,56577.0,0.001632]
[1725601236362,2.7385606,56578.0,56577.0,0.001632]
[1725601237217,2.5498136,56578.0,56577.0,0.001632]
[1725601237431,2.78175183,56578.0,56577.0,0.001632]
[1725601237847,2.77174703,56578.0,56577.0,0.001632]
[1725601238278,2.80747201,56578.0,56577.0,0.001632]
[1725601238964,2.87839501,56578.0,56577.0,0.001632]
[1725601239179,2.87839553,56578.0,56577.0,0.001632]
[1725601239400,2.8292043,56578.0,56577.0,0.001632]
[1725601240278,2.89839553,56578.0,56577.0,0.001632]
[1725601241136,2.8492043,56578.0,56577.0,0.001632]
[1725601241338,2.84920447,56578.0,56577.0,0.001632]
[1725601241775,2.86568878,56578.0,56577.0,0.001632]
[1725601241993,2.8492052,56578.0,56577.0,0.001632]
[1725601244719,2.89839723,56578.0,56577.0,0.001632]
[1725601250786,2.89669129,56578.0,56577.0,0.001632]
[1725601251412,2.9742843,56578.0,56577.0,0.001632]
[1725601252525,2.97428372,56578.0,56577.0,0.001632]
[1725601253161,3.00199417,56578.0,56577.0,0.001632]
[1725601254520,2.38871593,56578.0,56577.0,0.001632]
[1725601254737,2.33800548,56578.0,56577.0,0.101832]
[1725601255382,2.335049,56578.0,56577.0,0.101832]
[1725601255636,2.33123375,56578.0,56577.0,0.101832]
[1725601257803,2.33323375,56578.0,56577.0,0.101832]
[1725601258259,2.43313126,56578.0,56577.0,0.001632]
[1725601258473,2.57030495,56578.0,56577.0,0.001632]
[1725601260392,2.95379895,56578.0,56577.0,0.001632]
[1725601260613,3.11003163,56578.0,56577.0,0.001632]
[1725601260827,3.01846455,56578.0,56577.0,0.001632]
[1725601261034,2.93982224,56578.0,56577.0,0.001632]
[1725601261259,2.92333771,56578.0,56577.0,0.001632]
[1725601261473,3.01848115,56578.0,56577.0,0.001632]
[1725601262142,2.93982225,56578.0,56577.0,0.001632]
[1725601262802,2.87152771,56578.0,56577.0,0.001632]
[1725601263215,2.64730428,56578.0,56577.0,0.001632]
[1725601263461,2.64738494,56578.0,56577.0,0.001632]
[1725601263671,2.56869501,56578.0,56577.0,0.001632]
[1725601263889,2.64738494,56578.0,56577.0,0.001632]
[1725601264098,2.56869501,56578.0,56577.0,0.001632]
[1725601264298,2.67361185,56578.0,56577.0,0.001632]
[1725601264756,2.67361161,56578.0,56577.0,0.001632]
[1725601265199,2.47003852,56578.0,56577.0,0.001632]
[1725601265412,2.48003852,56578.0,56577.0,0.001632]
[1725601265616,2.48004426,56578.0,56577.0,0.001632]
[1725601265821,2.40123347,56578.0,56577.0,0.001632]
[1725601266040,2.48004251,56578.0,56577.0,0.001632]
[1725601266252,2.40123347,56578.0,56577.0,0.001632]
[1725601266896,2.5063676,56578.0,56577.0,0.001632]
[1725601267098,2.40123347,56578.0,56577.0,0.001632]
[1725601267340,2.53237952,56578.0,56577.0,0.001632]
[1725601267559,2.53437952,56578.0,56577.0,0.001632]
[1725601267772,2.40123347,56578.0,56577.0,0.001632]
[1725601267992,2.39123338,56578.0,56577.0,0.001632]
[1725601268206,2.49649224,56578.0,56577.0,0.101832]